[Event "*** Titled Tuesday Blitz"]
[Site "Chess.com"]
[Date "2019.10.01"]
[Round "7"]
[White "Jospem"]
[Black "Keranke"]
[Result "1-0"]
[WhiteElo "2894"]
[BlackElo "2806"]
[TimeControl "180+2"]
[EndTime "14:39:35 PDT"]
[Termination "Jospem won by resignation"]

1. c4 {[%clk 0:03:01.9]} 1... g6 {[%clk 0:02:59.9]} 2. Nf3 {[%clk 0:03:03.3]}
2... Bg7 {[%clk 0:03:00.5]} 3. d4 {[%clk 0:03:05.2]} 3... Nf6 {[%clk 0:03:01.3]}
4. g3 {[%clk 0:03:06.6]} 4... O-O {[%clk 0:03:02.8]} 5. Bg2 {[%clk 0:03:08.5]}
5... d6 {[%clk 0:03:04.3]} 6. O-O {[%clk 0:03:09.7]} 6... c6 {[%clk 0:03:05.4]}
7. Nc3 {[%clk 0:03:11.2]} 7... Qa5 {[%clk 0:03:04.7]} 8. h3 {[%clk 0:03:10.5]}
8... e5 {[%clk 0:03:01.4]} 9. e3 {[%clk 0:03:09.9]} 9... Re8 {[%clk 0:03:00.6]}
10. Bd2 {[%clk 0:03:07]} 10... Qc7 {[%clk 0:02:23.7]} 11. Rc1 {[%clk 0:03:07]}
11... e4 {[%clk 0:02:22.8]} 12. Ng5 {[%clk 0:03:05.6]} 12... Bf5 {[%clk
0:02:16.7]} 13. g4 {[%clk 0:03:06.6]} 13... h6 {[%clk 0:02:14]} 14. gxf5 {[%clk
0:03:03]} 14... hxg5 {[%clk 0:02:14.1]} 15. fxg6 {[%clk 0:03:04.9]} 15... fxg6
{[%clk 0:02:15.1]} 16. f3 {[%clk 0:03:05.8]} 16... exf3 {[%clk 0:02:02]} 17.
Qxf3 {[%clk 0:03:07.7]} 17... Qe7 {[%clk 0:01:56.5]} 18. b4 {[%clk 0:02:42.1]}
18... Nbd7 {[%clk 0:01:56.7]} 19. b5 {[%clk 0:02:43.5]} 19... Rac8 {[%clk
0:01:57.5]} 20. a4 {[%clk 0:02:41.6]} 20... Nb6 {[%clk 0:01:51.9]} 21. Qe2
{[%clk 0:02:30]} 21... d5 {[%clk 0:01:39.3]} 22. cxd5 {[%clk 0:02:28]} 22...
Nbxd5 {[%clk 0:01:39.8]} 23. bxc6 {[%clk 0:02:20.6]} 23... bxc6 {[%clk
0:01:40.4]} 24. Qd3 {[%clk 0:02:14.9]} 24... Nxc3 {[%clk 0:01:31.6]} 25. Rxc3
{[%clk 0:02:13.2]} 25... Ne4 {[%clk 0:00:36]} 26. Bxe4 {[%clk 0:02:11.2]} 26...
Qxe4 {[%clk 0:00:37.9]} 27. Qxe4 {[%clk 0:02:13.1]} 27... Rxe4 {[%clk
0:00:38.8]} 28. Kg2 {[%clk 0:02:15]} 28... g4 {[%clk 0:00:32.8]} 29. hxg4 {[%clk
0:02:14.5]} 29... Rxg4+ {[%clk 0:00:34.7]} 30. Kf3 {[%clk 0:02:15.9]} 30... Rg5
{[%clk 0:00:33.5]} 31. Rfc1 {[%clk 0:02:11.7]} 31... Rf8+ {[%clk 0:00:29.1]} 32.
Ke2 {[%clk 0:02:12.1]} 32... Rg2+ {[%clk 0:00:26]} 33. Kd3 {[%clk 0:02:13]}
33... Rff2 {[%clk 0:00:17.5]} 34. R1c2 {[%clk 0:02:06.3]} 34... g5 {[%clk
0:00:14.3]} 35. Rxc6 {[%clk 0:02:06.2]} 35... g4 {[%clk 0:00:15.8]} 36. Be1
{[%clk 0:01:54.7]} 36... Rxc2 {[%clk 0:00:10.5]} 37. Rxc2 {[%clk 0:01:56.6]}
37... Rg1 {[%clk 0:00:12.1]} 38. Bf2 {[%clk 0:01:45.1]} 38... Rg2 {[%clk
0:00:10.6]} 39. Bh4 {[%clk 0:01:44.5]} 39... Rg1 {[%clk 0:00:08.8]} 40. Ke4
{[%clk 0:01:43.3]} 40... Kf7 {[%clk 0:00:07.7]} 41. Kf5 {[%clk 0:01:39.2]} 41...
g3 {[%clk 0:00:06.9]} 42. Kg4 {[%clk 0:01:05.7]} 42... g2 {[%clk 0:00:04.7]} 43.
Bg5 {[%clk 0:00:52.5]} 43... Bf8 {[%clk 0:00:04.2]} 44. Rf2+ {[%clk 0:00:47.6]}
44... Ke8 {[%clk 0:00:04.7]} 45. Kf3 {[%clk 0:00:44.6]} 45... Ra1 {[%clk
0:00:04.9]} 46. Rxg2 {[%clk 0:00:43.7]} 46... Rxa4 {[%clk 0:00:06.5]} 47. Ke4
{[%clk 0:00:43.7]} 47... a5 {[%clk 0:00:07.3]} 48. Rc2 {[%clk 0:00:44]} 48...
Kd7 {[%clk 0:00:07.4]} 49. Bf4 {[%clk 0:00:42.8]} 49... Ra1 {[%clk 0:00:07.3]}
50. Rc7+ {[%clk 0:00:43.4]} 50... Kd8 {[%clk 0:00:08.8]} 51. Ra7 {[%clk
0:00:44.1]} 51... Bb4 {[%clk 0:00:09.8]} 52. Kd5 {[%clk 0:00:45.2]} 52... Rf1
{[%clk 0:00:09.7]} 53. Ke6 {[%clk 0:00:45.2]} 53... Kc8 {[%clk 0:00:10.3]} 54.
Rc7+ {[%clk 0:00:46.1]} 54... Kd8 {[%clk 0:00:10.8]} 55. Rc4 {[%clk 0:00:46]}
55... Rh1 {[%clk 0:00:11.1]} 56. Bg5+ {[%clk 0:00:47]} 1-0

[Event "*** Titled Tuesday Blitz"]
[Site "Chess.com"]
[Date "2019.10.01"]
[Round "7"]
[White "ENEASZ"]
[Black "Bad4life"]
[Result "1-0"]
[WhiteElo "2521"]
[BlackElo "2360"]
[TimeControl "180+2"]
[EndTime "14:39:36 PDT"]
[Termination "ENEASZ won by resignation"]

1. e4 {[%clk 0:03:01.9]} 1... c5 {[%clk 0:03:00.3]} 2. c3 {[%clk 0:03:02.9]}
2... Nf6 {[%clk 0:03:01.2]} 3. e5 {[%clk 0:03:04]} 3... Nd5 {[%clk 0:03:02.4]}
4. d4 {[%clk 0:03:05.9]} 4... cxd4 {[%clk 0:03:03.6]} 5. cxd4 {[%clk 0:03:07.8]}
5... d6 {[%clk 0:03:04.9]} 6. Bc4 {[%clk 0:03:09.1]} 6... dxe5 {[%clk
0:03:06.2]} 7. dxe5 {[%clk 0:03:07.2]} 7... Be6 {[%clk 0:03:07.7]} 8. Nf3 {[%clk
0:01:33.3]} 8... Nc6 {[%clk 0:03:03.3]} 9. O-O {[%clk 0:01:29.9]} 9... g6 {[%clk
0:03:02.2]} 10. Qe2 {[%clk 0:01:25.5]} 10... Nc7 {[%clk 0:02:44.3]} 11. Nc3
{[%clk 0:01:15.3]} 11... Bg7 {[%clk 0:02:41.6]} 12. Rd1 {[%clk 0:01:13.3]} 12...
Qc8 {[%clk 0:02:40.3]} 13. Bf4 {[%clk 0:01:12.1]} 13... O-O {[%clk 0:02:32.7]}
14. Rac1 {[%clk 0:01:11.9]} 14... a6 {[%clk 0:02:29.5]} 15. Ne4 {[%clk
0:01:08.3]} 15... Bxc4 {[%clk 0:02:20.6]} 16. Rxc4 {[%clk 0:01:06.6]} 16... Qg4
{[%clk 0:02:11.7]} 17. Bg3 {[%clk 0:01:01.5]} 17... Kh8 {[%clk 0:01:57.8]} 18.
Nd6 {[%clk 0:00:48.4]} 18... Qe6 {[%clk 0:01:52.8]} 19. Nxb7 {[%clk 0:00:47.5]}
19... Nb5 {[%clk 0:01:42]} 20. a4 {[%clk 0:00:39.1]} 20... Nba7 {[%clk
0:01:30.3]} 21. Nc5 {[%clk 0:00:39]} 21... Qc8 {[%clk 0:01:30.1]} 22. e6 {[%clk
0:00:37.2]} 22... f5 {[%clk 0:01:26]} 23. Nd7 {[%clk 0:00:35.9]} 23... Qb7
{[%clk 0:01:23.1]} 24. Nxf8 {[%clk 0:00:35.7]} 24... Rxf8 {[%clk 0:01:20]} 25.
Rd7 {[%clk 0:00:36.1]} 25... Qb3 {[%clk 0:01:18.1]} 26. Ne5 {[%clk 0:00:30.6]}
26... f4 {[%clk 0:01:05.6]} 27. Nxc6 {[%clk 0:00:18.5]} 27... fxg3 {[%clk
0:01:04.1]} 28. hxg3 {[%clk 0:00:18.9]} 28... Nxc6 {[%clk 0:01:00.7]} 29. Rxc6
{[%clk 0:00:20.8]} 29... Qxa4 {[%clk 0:00:58.7]} 30. Rxa6 {[%clk 0:00:20.4]}
30... Qb4 {[%clk 0:00:44]} 31. Rda7 {[%clk 0:00:20.8]} 31... Bd4 {[%clk
0:00:40.9]} 32. Ra8 {[%clk 0:00:21.8]} 32... Rxa8 {[%clk 0:00:27.8]} 33. Rxa8+
{[%clk 0:00:23.7]} 33... Kg7 {[%clk 0:00:29.5]} 34. Rd8 {[%clk 0:00:21.5]} 34...
Bxb2 {[%clk 0:00:27]} 35. Rd7 {[%clk 0:00:21.8]} 35... Bf6 {[%clk 0:00:27.7]}
36. g4 {[%clk 0:00:19.8]} 36... Qb1+ {[%clk 0:00:27.7]} 37. Kh2 {[%clk 0:00:20]}
37... Qb8+ {[%clk 0:00:23.8]} 38. g3 {[%clk 0:00:20.8]} 38... Qb3 {[%clk
0:00:20.7]} 39. Rd8 {[%clk 0:00:17.1]} 39... Qb6 {[%clk 0:00:20.3]} 40. Rc8
{[%clk 0:00:15.7]} 40... Qd6 {[%clk 0:00:21.1]} 41. Rc4 {[%clk 0:00:14.7]} 41...
Qd5 {[%clk 0:00:22.2]} 42. Re4 {[%clk 0:00:15.2]} 42... Qg5 {[%clk 0:00:23.3]}
43. f4 {[%clk 0:00:15.4]} 43... Qh6+ {[%clk 0:00:24.4]} 44. Kg2 {[%clk
0:00:16.6]} 44... g5 {[%clk 0:00:25.9]} 45. f5 {[%clk 0:00:17.8]} 45... Kh8
{[%clk 0:00:25.8]} 46. Qc2 {[%clk 0:00:15.5]} 46... Qf8 {[%clk 0:00:26.8]} 47.
Rc4 {[%clk 0:00:15.8]} 47... Qh6 {[%clk 0:00:27.3]} 48. Rc8+ {[%clk 0:00:16.2]}
48... Kg7 {[%clk 0:00:28.7]} 49. Qc6 {[%clk 0:00:16.9]} 49... Qh5 {[%clk
0:00:14.6]} 50. gxh5 {[%clk 0:00:16.1]} 1-0

[Event "*** Titled Tuesday Blitz"]
[Site "Chess.com"]
[Date "2019.10.01"]
[Round "7"]
[White "Aggressus"]
[Black "oskariot"]
[Result "1-0"]
[WhiteElo "2392"]
[BlackElo "2673"]
[TimeControl "180+2"]
[EndTime "14:39:39 PDT"]
[Termination "Aggressus won on time"]

1. e4 {[%clk 0:03:01.9]} 1... e6 {[%clk 0:03:01.1]} 2. d4 {[%clk 0:03:02.2]}
2... d5 {[%clk 0:03:02.4]} 3. e5 {[%clk 0:03:03]} 3... c5 {[%clk 0:03:03.5]} 4.
c3 {[%clk 0:03:03.5]} 4... Nc6 {[%clk 0:03:05.1]} 5. g3 {[%clk 0:03:04]} 5...
Qb6 {[%clk 0:03:03.5]} 6. Ne2 {[%clk 0:03:04.8]} 6... f6 {[%clk 0:02:56.9]} 7.
exf6 {[%clk 0:02:54]} 7... Nxf6 {[%clk 0:02:57]} 8. Bg2 {[%clk 0:02:48.2]} 8...
cxd4 {[%clk 0:02:58.2]} 9. cxd4 {[%clk 0:02:48.5]} 9... Bb4+ {[%clk 0:02:58.8]}
10. Nbc3 {[%clk 0:02:49.6]} 10... O-O {[%clk 0:02:59.2]} 11. O-O {[%clk
0:02:50.5]} 11... Bd7 {[%clk 0:03:00.7]} 12. Na4 {[%clk 0:02:48.7]} 12... Qc7
{[%clk 0:02:50.4]} 13. Bf4 {[%clk 0:02:44.1]} 13... Bd6 {[%clk 0:02:47.9]} 14.
Nc5 {[%clk 0:02:06]} 14... Bxf4 {[%clk 0:02:33.3]} 15. Nxf4 {[%clk 0:02:06.2]}
15... Rae8 {[%clk 0:02:34.9]} 16. Re1 {[%clk 0:01:59.1]} 16... Nd8 {[%clk
0:02:20.4]} 17. Rc1 {[%clk 0:01:54.7]} 17... Qb6 {[%clk 0:02:20.5]} 18. Qd2
{[%clk 0:01:37.6]} 18... Rf7 {[%clk 0:02:01.5]} 19. Re3 {[%clk 0:00:46]} 19...
Rfe7 {[%clk 0:01:56.8]} 20. Rce1 {[%clk 0:00:46.2]} 20... Bc8 {[%clk 0:01:52.8]}
21. Rb3 {[%clk 0:00:45.7]} 21... Qd6 {[%clk 0:01:48.8]} 22. Ncd3 {[%clk
0:00:45.2]} 22... Nd7 {[%clk 0:01:41.5]} 23. Ne5 {[%clk 0:00:44.9]} 23... Nxe5
{[%clk 0:01:42.4]} 24. Rxe5 {[%clk 0:00:45.8]} 24... Nc6 {[%clk 0:01:41.5]} 25.
Rg5 {[%clk 0:00:43.2]} 25... h6 {[%clk 0:01:35.3]} 26. Rg6 {[%clk 0:00:41.9]}
26... Rf7 {[%clk 0:01:09]} 27. Nxd5 {[%clk 0:00:29.3]} 27... Qd8 {[%clk
0:00:45.4]} 28. Nf4 {[%clk 0:00:19.1]} 28... e5 {[%clk 0:00:36.9]} 29. Nh5
{[%clk 0:00:16.9]} 29... Nxd4 {[%clk 0:00:36.1]} 30. Rd3 {[%clk 0:00:13.2]}
30... Bf5 {[%clk 0:00:23.1]} 31. Qxh6 {[%clk 0:00:11.3]} 31... Bxg6 {[%clk
0:00:19.2]} 32. Qxg6 {[%clk 0:00:11.7]} 32... Re6 {[%clk 0:00:18.5]} 33. Qg4
{[%clk 0:00:10.8]} 33... Qd6 {[%clk 0:00:10.4]} 34. Be4 {[%clk 0:00:10.9]} 34...
Rh6 {[%clk 0:00:08.1]} 35. Rc3 {[%clk 0:00:05.3]} 35... Nc6 {[%clk 0:00:05.9]}
36. Rd3 {[%clk 0:00:03.4]} 36... Nd4 {[%clk 0:00:04.7]} 37. Rc3 {[%clk
0:00:04.2]} 37... Nc6 {[%clk 0:00:03.3]} 38. Rd3 {[%clk 0:00:05]} 38... Qe7
{[%clk 0:00:04.5]} 39. Bd5 {[%clk 0:00:05.7]} 39... Nd4 {[%clk 0:00:03.7]} 40.
Rc3 {[%clk 0:00:06]} 40... Kh7 {[%clk 0:00:03.6]} 41. Be4+ {[%clk 0:00:06.4]}
41... g6 {[%clk 0:00:04.3]} 42. Rc8 {[%clk 0:00:06.4]} 42... Rf6 {[%clk
0:00:02.5]} 43. Nxf6+ {[%clk 0:00:07.1]} 43... Qxf6 {[%clk 0:00:03.8]} 44. Rc7+
{[%clk 0:00:07.9]} 44... Kh8 {[%clk 0:00:04.7]} 45. Qc8+ {[%clk 0:00:08.5]} 1-0

[Event "*** Titled Tuesday Blitz"]
[Site "Chess.com"]
[Date "2019.10.01"]
[Round "7"]
[White "Ginzburg_Yakov"]
[Black "Rsnr"]
[Result "0-1"]
[WhiteElo "2575"]
[BlackElo "2771"]
[TimeControl "180+2"]
[EndTime "14:39:42 PDT"]
[Termination "Rsnr won by resignation"]

1. e4 {[%clk 0:03:01.8]} 1... c6 {[%clk 0:03:00.9]} 2. d4 {[%clk 0:03:01.3]}
2... d5 {[%clk 0:03:02.8]} 3. Nc3 {[%clk 0:03:02.4]} 3... dxe4 {[%clk
0:03:04.1]} 4. Nxe4 {[%clk 0:03:03.3]} 4... Bf5 {[%clk 0:03:05.8]} 5. Ng3 {[%clk
0:03:04]} 5... Bg6 {[%clk 0:03:07.2]} 6. Nf3 {[%clk 0:03:04.8]} 6... e6 {[%clk
0:03:08.7]} 7. Ne5 {[%clk 0:02:59.4]} 7... Nf6 {[%clk 0:03:08.6]} 8. Nxg6 {[%clk
0:02:52]} 8... hxg6 {[%clk 0:03:04.4]} 9. c3 {[%clk 0:02:51.4]} 9... Bd6 {[%clk
0:02:55.3]} 10. Qf3 {[%clk 0:02:45.9]} 10... Qc7 {[%clk 0:02:49.9]} 11. Bd3
{[%clk 0:02:35.8]} 11... Nbd7 {[%clk 0:02:50.7]} 12. Be3 {[%clk 0:02:26.2]}
12... e5 {[%clk 0:02:48.1]} 13. O-O-O {[%clk 0:02:25.2]} 13... O-O-O {[%clk
0:02:49]} 14. Ne4 {[%clk 0:02:22.8]} 14... Nxe4 {[%clk 0:02:43.9]} 15. Bxe4
{[%clk 0:02:17]} 15... f5 {[%clk 0:02:44.9]} 16. Bc2 {[%clk 0:02:17.4]} 16... e4
{[%clk 0:02:46.2]} 17. Qe2 {[%clk 0:02:14.8]} 17... Nf6 {[%clk 0:02:47.3]} 18.
h3 {[%clk 0:02:09.9]} 18... f4 {[%clk 0:02:36.6]} 19. Bd2 {[%clk 0:02:10.3]}
19... Rhe8 {[%clk 0:02:37.9]} 20. Kb1 {[%clk 0:02:07.1]} 20... g5 {[%clk
0:02:38.5]} 21. c4 {[%clk 0:02:03.2]} 21... c5 {[%clk 0:02:39.8]} 22. Bc3 {[%clk
0:02:04]} 22... Kb8 {[%clk 0:02:32.8]} 23. Rhe1 {[%clk 0:02:04.6]} 23... cxd4
{[%clk 0:02:20.2]} 24. Bxd4 {[%clk 0:01:44.9]} 24... Be5 {[%clk 0:02:21.5]} 25.
Bxe5 {[%clk 0:01:33.4]} 25... Qxe5 {[%clk 0:02:23.4]} 26. Ba4 {[%clk 0:01:15.7]}
26... Rh8 {[%clk 0:01:56.9]} 27. Qc2 {[%clk 0:01:15.7]} 27... Rc8 {[%clk
0:01:49.9]} 28. b4 {[%clk 0:01:13.6]} 28... Rhd8 {[%clk 0:01:43.1]} 29. Bb3
{[%clk 0:01:13.9]} 29... a5 {[%clk 0:01:34.2]} 30. a3 {[%clk 0:01:11.2]} 30...
Nd5 {[%clk 0:01:15.2]} 31. Qb2 {[%clk 0:00:12.4]} 31... Nc3+ {[%clk 0:01:01.9]}
32. Kc2 {[%clk 0:00:13.6]} 32... axb4 {[%clk 0:00:45.7]} 33. axb4 {[%clk
0:00:14.8]} 33... Rd3 {[%clk 0:00:46.9]} 34. Rxe4 {[%clk 0:00:09.8]} 34... Qxe4
{[%clk 0:00:44.9]} 35. Rxd3 {[%clk 0:00:11.3]} 35... Nd5 {[%clk 0:00:38.1]} 36.
Qa3 {[%clk 0:00:05.8]} 36... Qxg2 {[%clk 0:00:23.5]} 37. b5 {[%clk 0:00:07.3]}
37... Qxf2+ {[%clk 0:00:20.7]} 38. Kb1 {[%clk 0:00:08.5]} 38... Qe1+ {[%clk
0:00:16.7]} 39. Rd1 {[%clk 0:00:05.6]} 39... Qe4+ {[%clk 0:00:17.5]} 40. Ka2
{[%clk 0:00:05.6]} 40... Nc3+ {[%clk 0:00:18.1]} 41. Ka1 {[%clk 0:00:06.5]}
41... Qe5 {[%clk 0:00:13]} 42. Qb2 {[%clk 0:00:06.3]} 42... f3 {[%clk
0:00:13.2]} 43. Rf1 {[%clk 0:00:04.2]} 43... f2 {[%clk 0:00:11.5]} 44. Qxf2
{[%clk 0:00:02.9]} 44... Nd1+ {[%clk 0:00:11.6]} 0-1

[Event "*** Titled Tuesday Blitz"]
[Site "Chess.com"]
[Date "2019.10.01"]
[Round "7"]
[White "riconaipe"]
[Black "vova-79"]
[Result "1/2-1/2"]
[WhiteElo "2612"]
[BlackElo "2467"]
[TimeControl "180+2"]
[EndTime "14:39:48 PDT"]
[Termination "Game drawn - insufficient material"]

1. d4 {[%clk 0:03:01.9]} 1... d5 {[%clk 0:03:00.3]} 2. c4 {[%clk 0:03:02.9]}
2... c6 {[%clk 0:03:00.6]} 3. Nf3 {[%clk 0:03:02.5]} 3... Nf6 {[%clk 0:03:01.3]}
4. e3 {[%clk 0:03:04]} 4... e6 {[%clk 0:03:02.2]} 5. Nc3 {[%clk 0:03:01.4]} 5...
Nbd7 {[%clk 0:03:02.8]} 6. Qc2 {[%clk 0:02:53.7]} 6... Bd6 {[%clk 0:03:02.5]} 7.
g4 {[%clk 0:02:54.9]} 7... h6 {[%clk 0:03:02.5]} 8. h3 {[%clk 0:02:52.6]} 8...
e5 {[%clk 0:03:00.5]} 9. dxe5 {[%clk 0:02:50.4]} 9... Nxe5 {[%clk 0:02:59.1]}
10. Nxe5 {[%clk 0:02:51.5]} 10... Bxe5 {[%clk 0:02:58.4]} 11. cxd5 {[%clk
0:02:41.1]} 11... Nxd5 {[%clk 0:02:24.5]} 12. Bg2 {[%clk 0:02:35]} 12... Nxc3
{[%clk 0:02:21]} 13. bxc3 {[%clk 0:02:36.7]} 13... O-O {[%clk 0:02:20.9]} 14. f4
{[%clk 0:02:30.4]} 14... Bf6 {[%clk 0:02:12.6]} 15. O-O {[%clk 0:02:27.5]} 15...
Be6 {[%clk 0:02:08.2]} 16. e4 {[%clk 0:02:21.8]} 16... Bc4 {[%clk 0:02:07.4]}
17. Rf2 {[%clk 0:02:22.3]} 17... Bd3 {[%clk 0:01:54.3]} 18. Qb3 {[%clk
0:02:05.7]} 18... Qb6 {[%clk 0:01:46]} 19. e5 {[%clk 0:01:39.5]} 19... Be7
{[%clk 0:01:41.7]} 20. Qxb6 {[%clk 0:01:32]} 20... axb6 {[%clk 0:01:40.9]} 21.
Be3 {[%clk 0:01:33.6]} 21... b5 {[%clk 0:01:33.2]} 22. Bf1 {[%clk 0:01:17.1]}
22... Rfd8 {[%clk 0:01:30.1]} 23. Bb6 {[%clk 0:01:14]} 23... Rd5 {[%clk
0:01:19.7]} 24. Bg2 {[%clk 0:01:14.5]} 24... Bc5 {[%clk 0:01:15.5]} 25. Bxd5
{[%clk 0:00:49.9]} 25... Bxb6 {[%clk 0:01:13.9]} 26. Bb3 {[%clk 0:00:51.5]}
26... Bc4 {[%clk 0:01:06.8]} 27. Bxc4 {[%clk 0:00:26.9]} 27... bxc4 {[%clk
0:01:08.7]} 28. a4 {[%clk 0:00:26.4]} 28... g5 {[%clk 0:00:56.6]} 29. fxg5
{[%clk 0:00:24.1]} 29... hxg5 {[%clk 0:00:56.7]} 30. Kg2 {[%clk 0:00:25.4]}
30... Bxf2 {[%clk 0:00:55.6]} 31. Kxf2 {[%clk 0:00:27]} 31... Ra5 {[%clk
0:00:56.9]} 32. Rb1 {[%clk 0:00:27.7]} 32... Rxa4 {[%clk 0:00:49]} 33. Rxb7
{[%clk 0:00:28.4]} 33... Ra3 {[%clk 0:00:49.5]} 34. Ke3 {[%clk 0:00:21.6]} 34...
Rxc3+ {[%clk 0:00:49]} 35. Ke4 {[%clk 0:00:22.6]} 35... Rxh3 {[%clk 0:00:35.2]}
36. Rc7 {[%clk 0:00:24]} 36... c3 {[%clk 0:00:23.3]} 37. Kf5 {[%clk 0:00:24.7]}
37... Rf3+ {[%clk 0:00:15.9]} 38. Kxg5 {[%clk 0:00:24.6]} 38... c2 {[%clk
0:00:16.1]} 39. Rxc6 {[%clk 0:00:25.2]} 39... Rf2 {[%clk 0:00:17]} 40. Rc7
{[%clk 0:00:19]} 40... Kf8 {[%clk 0:00:16.9]} 41. Kh4 {[%clk 0:00:16.8]} 41...
Re2 {[%clk 0:00:16.4]} 42. Kg3 {[%clk 0:00:15.9]} 42... Rxe5 {[%clk 0:00:15.9]}
43. Rxc2 {[%clk 0:00:17.5]} 43... Kg7 {[%clk 0:00:16.2]} 44. Kf4 {[%clk
0:00:19]} 44... Re6 {[%clk 0:00:16.6]} 45. Rc5 {[%clk 0:00:19.9]} 45... Rf6+
{[%clk 0:00:16.9]} 46. Kg5 {[%clk 0:00:21.1]} 46... Rg6+ {[%clk 0:00:17.1]} 47.
Kh5 {[%clk 0:00:22.6]} 47... Rh6+ {[%clk 0:00:17.8]} 48. Kg5 {[%clk 0:00:24.1]}
48... Rg6+ {[%clk 0:00:19.7]} 49. Kh4 {[%clk 0:00:25.8]} 49... Rh6+ {[%clk
0:00:20.4]} 50. Kg3 {[%clk 0:00:27]} 50... Ra6 {[%clk 0:00:20.4]} 51. g5 {[%clk
0:00:27.9]} 51... Kg6 {[%clk 0:00:19.8]} 52. Kf4 {[%clk 0:00:27.1]} 52... Ra4+
{[%clk 0:00:19.2]} 53. Kf3 {[%clk 0:00:28.5]} 53... f6 {[%clk 0:00:19.1]} 54.
gxf6 {[%clk 0:00:28.9]} 54... Kxf6 {[%clk 0:00:19.6]} 55. Ke3 {[%clk 0:00:30.2]}
55... Ke6 {[%clk 0:00:20.3]} 56. Kd3 {[%clk 0:00:31.4]} 56... Kd6 {[%clk
0:00:21.1]} 57. Rc4 {[%clk 0:00:32.7]} 57... Rxc4 {[%clk 0:00:21.3]} 58. Kxc4
{[%clk 0:00:34.2]} 1/2-1/2

[Event "*** Titled Tuesday Blitz"]
[Site "Chess.com"]
[Date "2019.10.01"]
[Round "7"]
[White "Kostya_Nikologorskiy"]
[Black "PaulfromSPb"]
[Result "0-1"]
[WhiteElo "2514"]
[BlackElo "2669"]
[TimeControl "180+2"]
[EndTime "14:39:51 PDT"]
[Termination "PaulfromSPb won by resignation"]

1. d4 {[%clk 0:03:01.9]} 1... Nf6 {[%clk 0:02:58.2]} 2. c4 {[%clk 0:03:02.6]}
2... e6 {[%clk 0:02:58.9]} 3. Nf3 {[%clk 0:03:02.5]} 3... b6 {[%clk 0:02:59.6]}
4. g3 {[%clk 0:03:04]} 4... Ba6 {[%clk 0:03:00.3]} 5. Nbd2 {[%clk 0:02:51.8]}
5... c5 {[%clk 0:02:58.7]} 6. Bg2 {[%clk 0:02:51.8]} 6... Bb7 {[%clk 0:02:58.6]}
7. O-O {[%clk 0:02:39.7]} 7... cxd4 {[%clk 0:02:58.5]} 8. Nb3 {[%clk 0:02:40.8]}
8... Be7 {[%clk 0:02:45.5]} 9. Nbxd4 {[%clk 0:02:36.3]} 9... O-O {[%clk
0:02:44.3]} 10. b3 {[%clk 0:02:34.5]} 10... Na6 {[%clk 0:02:43.9]} 11. Bb2
{[%clk 0:02:35.4]} 11... Nc5 {[%clk 0:02:41.7]} 12. Rc1 {[%clk 0:02:32.7]} 12...
Rc8 {[%clk 0:02:41.8]} 13. Nb5 {[%clk 0:02:33]} 13... d5 {[%clk 0:02:35.1]} 14.
Ne5 {[%clk 0:02:00.5]} 14... a6 {[%clk 0:02:31.3]} 15. Nd4 {[%clk 0:01:55.6]}
15... Bd6 {[%clk 0:02:12]} 16. Ndf3 {[%clk 0:01:35.4]} 16... Qe7 {[%clk
0:02:09.1]} 17. cxd5 {[%clk 0:01:34.9]} 17... Bxd5 {[%clk 0:02:07.2]} 18. Qd4
{[%clk 0:01:31.5]} 18... Rfd8 {[%clk 0:02:02.6]} 19. Qh4 {[%clk 0:01:21.3]}
19... h6 {[%clk 0:01:58.7]} 20. Rfd1 {[%clk 0:01:20.7]} 20... Nce4 {[%clk
0:01:57.7]} 21. Nc4 {[%clk 0:01:12.7]} 21... Bc5 {[%clk 0:01:54.8]} 22. e3
{[%clk 0:00:58.6]} 22... b5 {[%clk 0:01:53.6]} 23. Nce5 {[%clk 0:00:55.7]} 23...
Ba3 {[%clk 0:01:39.2]} 24. Bxa3 {[%clk 0:00:48.9]} 24... Qxa3 {[%clk 0:01:39.3]}
25. Rxc8 {[%clk 0:00:47.7]} 25... Rxc8 {[%clk 0:01:41.2]} 26. g4 {[%clk
0:00:44.5]} 26... Qxa2 {[%clk 0:01:32.3]} 27. g5 {[%clk 0:00:42.5]} 27... Qxb3
{[%clk 0:01:17.2]} 28. Rf1 {[%clk 0:00:34.8]} 28... hxg5 {[%clk 0:01:13.6]} 29.
Nxg5 {[%clk 0:00:29.1]} 29... Nxg5 {[%clk 0:01:14.2]} 30. Qxg5 {[%clk
0:00:25.7]} 30... Bxg2 {[%clk 0:01:14]} 31. Qxg2 {[%clk 0:00:24.3]} 31... Qd5
{[%clk 0:01:14.2]} 32. Qg3 {[%clk 0:00:21.3]} 32... Ne4 {[%clk 0:01:11.4]} 33.
Qf4 {[%clk 0:00:21.8]} 33... f6 {[%clk 0:01:10.5]} 34. Nf3 {[%clk 0:00:22.7]}
34... Ng5 {[%clk 0:01:07]} 35. Nxg5 {[%clk 0:00:21.3]} 35... Qxg5+ {[%clk
0:01:07.6]} 36. Qxg5 {[%clk 0:00:22.8]} 36... fxg5 {[%clk 0:01:09.5]} 37. Ra1
{[%clk 0:00:24]} 37... Ra8 {[%clk 0:01:09.4]} 38. Kf1 {[%clk 0:00:25.3]} 38...
Kf7 {[%clk 0:01:05.9]} 39. Ke2 {[%clk 0:00:26.2]} 39... Ke7 {[%clk 0:01:06.8]}
40. Kd3 {[%clk 0:00:27.5]} 40... Kd6 {[%clk 0:01:07.7]} 41. Rg1 {[%clk
0:00:28.5]} 41... Ra7 {[%clk 0:00:55.9]} 42. Rxg5 {[%clk 0:00:28.6]} 42... Rf7
{[%clk 0:00:56.7]} 43. f4 {[%clk 0:00:29.1]} 43... Kc6 {[%clk 0:00:57.7]} 44.
Rg6 {[%clk 0:00:25.9]} 44... Re7 {[%clk 0:00:48.6]} 45. Kd4 {[%clk 0:00:22.4]}
45... b4 {[%clk 0:00:46.9]} 46. Kc4 {[%clk 0:00:22.6]} 46... a5 {[%clk
0:00:47.5]} 47. e4 {[%clk 0:00:23.9]} 47... Kd6 {[%clk 0:00:43]} 48. e5+ {[%clk
0:00:24.1]} 48... Kd7 {[%clk 0:00:40.3]} 49. Kb5 {[%clk 0:00:22.8]} 49... Ke8
{[%clk 0:00:29.9]} 50. Kxa5 {[%clk 0:00:21.5]} 50... b3 {[%clk 0:00:30.6]} 51.
Rg1 {[%clk 0:00:20.9]} 51... Rb7 {[%clk 0:00:29.2]} 52. Ka4 {[%clk 0:00:21.2]}
52... b2 {[%clk 0:00:28.4]} 53. Rb1 {[%clk 0:00:21.9]} 53... Kf7 {[%clk
0:00:29.6]} 54. h4 {[%clk 0:00:21.3]} 54... Kg6 {[%clk 0:00:30.5]} 55. h5+
{[%clk 0:00:22.7]} 55... Kf5 {[%clk 0:00:27.5]} 56. Ka3 {[%clk 0:00:22.9]} 56...
Kxf4 {[%clk 0:00:26.9]} 57. Ka2 {[%clk 0:00:24.1]} 57... Kxe5 {[%clk 0:00:26]}
0-1